fUST/lending_fUST_20240927
["ID","MTS","AMOUNT","RATE_DAILY","PERIOD"]
[339230384,1727381447134,-764.24,0.00021999,7]
[339230385,1727381447144,-764.24,0.00021999,7]
[339230386,1727381447153,-764.24,0.00021999,7]
[339230387,1727381447163,-764.24,0.00021999,7]
[339230388,1727381447174,-764.24,0.00021999,7]
[339230389,1727381447184,-764.24,0.00021999,7]
[339230390,1727381447193,-764.24,0.00021999,7]
[339230391,1727381447205,-764.24,0.00021999,7]
[339230392,1727381447216,-764.24,0.00021999,7]
[339230393,1727381447227,-764.24,0.00021999,7]
[339230394,1727381447238,-764.24,0.00021999,7]
[339230395,1727381447247,-764.24,0.00021999,7]
[339230396,1727381447256,-764.24,0.00021999,7]
[339230397,1727381447266,-500.0,0.00021999,120]
[339230398,1727381447276,-764.24,0.00021999,7]
[339230399,1727381447284,-500.0,0.00021999,120]
[339230400,1727381447294,-603.53119924,0.00021999,120]
[339230401,1727381447303,-500.0,0.00021999,120]
[339230402,1727381447313,-764.24,0.00021999,7]
[339230403,1727381447322,-256.87436152,0.00021999,120]
[339230404,1727381447332,-764.24,0.00021999,7]
[339230405,1727381447341,-764.24,0.00021999,7]
[339230406,1727381447350,-764.24,0.00021999,7]
[339230407,1727381447359,-764.24,0.00021999,7]
[339230408,1727381447368,-764.24,0.00021999,7]
[339230409,1727381447377,-764.24,0.00021999,7]
[339230410,1727381447386,-764.24,0.00021999,7]
[339230411,1727381447397,-764.24,0.00021999,7]
[339230412,1727381447406,-764.46334504,0.00021999,7]
[339230413,1727381447416,-500.0,0.00021999,120]
[339230414,1727381447424,-500.0,0.00021999,120]
[339230415,1727381447433,-649.211943,0.00021999,120]
[339230416,1727381447444,-500.0,0.00021999,120]
[339230417,1727381447454,-500.0,0.00021999,120]
[339230418,1727381447463,-500.0,0.00021999,120]
[339230419,1727381447472,-544.14756696,0.00021999,120]
[339230420,1727381447482,-500.0,0.00021999,120]
[339230421,1727381447491,-547.23880319,0.00021999,120]
[339230422,1727381447500,-500.0,0.00021999,120]
[339230423,1727381447509,-500.0,0.00021999,120]
[339230424,1727381447518,-504.15598698,0.00021999,120]
[339230425,1727381447528,-505.45652523,0.00021999,120]
[339230426,1727381447538,-500.0,0.00021999,120]
[339230427,1727381447547,-500.0,0.00021999,120]
[339230428,1727381447556,-406.31068931,0.00021999,120]
[339230429,1727381447566,-501.40429349,0.00021999,120]
[339230430,1727381447575,-500.0,0.00021999,2]
[339230431,1727381447584,-500.0,0.00021999,2]
[339230432,1727381447594,-500.0,0.00021999,120]
[339230433,1727381447603,-500.0,0.00021999,2]
[339230434,1727381447612,-516.2292865,0.00021999,120]
[339230435,1727381447621,-500.0,0.00021999,2]
[339230436,1727381447630,-500.0,0.00021999,2]
[339230437,1727381447639,-500.0,0.00021999,2]
[339230438,1727381447648,-500.0,0.00021999,2]
[339230439,1727381447657,-500.0,0.00021999,2]
[339230440,1727381447666,-500.0,0.00021999,2]
[339230441,1727381447675,-500.0,0.00021999,2]
[339230442,1727381447685,-500.0,0.00021999,2]
[339230443,1727381447694,-500.0,0.00021999,120]
[339230444,1727381447704,-500.0,0.00021999,2]
[339230445,1727381447713,-468.24505317,0.00021999,120]
[339230446,1727381447722,-500.0,0.00021999,2]
[339230447,1727381447731,-500.0,0.00021999,2]
[339230448,1727381447740,-253.95,0.00021999,2]
[339230449,1727381447749,-500.0,0.00021999,120]
[339230450,1727381447758,-501.45629944,0.00021999,120]
[339230451,1727381447768,-500.0,0.00021999,120]
[339230452,1727381447776,-500.0,0.00021999,120]
[339230453,1727381447786,-503.39798103,0.00021999,120]
[339230454,1727381447795,-500.0,0.00021999,120]
[339230455,1727381447804,-433.0437552,0.00021999,120]
[339230456,1727381447813,-500.0,0.00021999,120]
[339230457,1727381447822,-502.36019001,0.00021999,120]
[339230458,1727381447832,-505.17757509,0.00021999,120]
[339230459,1727381447841,-500.0,0.00021999,120]
[339230460,1727381447850,-500.0,0.00021999,120]
[339230461,1727381447860,-500.0,0.00021999,120]
[339230462,1727381447868,-160.5107763,0.00021999,120]
[339230463,1727381447878,-503.82445046,0.00021999,120]
[339230464,1727381447887,-500.0,0.00021999,120]
[339230465,1727381447897,-500.0,0.00021999,120]
[339230466,1727381447905,-502.90496196,0.00021999,120]
[339230467,1727381447915,-500.0,0.00021999,120]
[339230468,1727381447924,-500.0,0.00021999,120]
[339230469,1727381447933,-505.81315304,0.00021999,120]
[339230470,1727381447942,-502.09868353,0.00021999,120]
[339230471,1727381447951,-500.0,0.00021999,120]
[339230472,1727381447960,-500.0,0.00021999,120]
[339230473,1727381447969,-230.08,0.00021999,120]
[339230474,1727381447978,-500.0,0.00021999,120]
[339230475,1727381447987,-500.0,0.00021999,120]
[339230476,1727381447996,-500.0,0.00021999,120]
[339230477,1727381448006,-500.0,0.00021999,120]
[339230478,1727381448015,-500.0,0.00021999,120]
[339230479,1727381448024,-500.0,0.00021999,120]
[339230480,1727381448033,-500.0,0.00021999,120]
[339230481,1727381448043,-500.0,0.00021999,120]
[339230482,1727381448052,-500.0,0.00021999,120]
[339230483,1727381448062,-500.0,0.00021999,120]
[339230484,1727381448071,-500.0,0.00021999,120]
[339230485,1727381448080,-500.0,0.00021999,120]
[339230486,1727381448089,-500.0,0.00021999,120]
[339230487,1727381448101,-476.96277557,0.00021999,120]
[339230488,1727381448112,-500.0,0.00021999,120]
[339230489,1727381448122,-500.0,0.00021999,120]
[339230490,1727381448132,-500.0,0.00021999,120]
[339230491,1727381448143,-500.0,0.00021999,120]
[339230492,1727381448152,-500.0,0.00021999,120]
[339230493,1727381448161,-500.0,0.00021999,120]
[339230494,1727381448170,-500.0,0.00021999,120]
[339230495,1727381448180,-500.0,0.00021999,120]
[339230496,1727381448190,-500.0,0.00021999,120]
[339230497,1727381448200,-500.0,0.00021999,120]
[339230498,1727381448209,-500.0,0.00021999,120]
[339230499,1727381448219,-440.83748152,0.00021999,120]
[339230500,1727381448327,-500.0,0.00021999,120]
[339230501,1727381448337,-225.79366026,0.00021999,120]
[339230502,1727381448346,-509.68535942,0.00021999,120]
[339230503,1727381448357,-500.0,0.00021999,120]
[339230504,1727381448366,-500.0,0.00021999,120]
[339230505,1727381448375,-366.25936454,0.00021999,120]
[339230506,1727381448384,-500.0,0.00021999,120]
[339230507,1727381448394,-397.92905079,0.00021999,120]
[339230508,1727381448403,-500.0,0.00021999,120]
[339230509,1727381448412,-500.0,0.00021999,120]
[339230510,1727381448423,-500.0,0.00021999,120]
[339230511,1727381448432,-585.13958455,0.00021999,120]
[339230512,1727381448441,-500.0,0.00021999,120]
[339230513,1727381448450,-500.95213592,0.00021999,120]
[339230514,1727381448460,-566.95106437,0.00021999,120]
[339230515,1727381448470,-500.0,0.00021999,120]
[339230516,1727381448479,-608.34052896,0.00021999,120]
[339230517,1727381448491,-500.0,0.00021999,120]
[339230518,1727381448502,-501.31373715,0.00021999,120]
[339230519,1727381448512,-500.0,0.00021999,120]
[339230520,1727381448522,-513.21907142,0.00021999,120]
[339230521,1727381448532,-513.04853029,0.00021999,120]
[339230522,1727381448543,-505.60313353,0.00021999,120]
[339230523,1727381448553,-500.0,0.00021999,120]
[339230524,1727381448563,-504.58991093,0.00021999,120]
[339230525,1727381448573,-500.0,0.00021999,120]
[339230526,1727381448582,-500.0,0.00021999,120]
[339230527,1727381448592,-500.0,0.00021999,120]
[339230528,1727381448601,-500.0,0.00021999,120]
[339230529,1727381448610,-500.0,0.00021999,120]
[339230530,1727381448619,-500.0,0.00021999,120]
[339230531,1727381448628,-500.0,0.00021999,120]
[339230532,1727381448638,-500.0,0.00021999,120]
[339230533,1727381448647,-500.0,0.00021999,120]
[339230534,1727381448656,-500.0,0.00021999,120]
[339230535,1727381448666,-501.27515474,0.00021999,120]
[339230536,1727381448675,-500.0,0.00021999,120]
[339230537,1727381448684,-500.0,0.00021999,120]
[339230538,1727381448694,-500.0,0.00021999,120]
[339230539,1727381448703,-500.0,0.00021999,120]
[339230540,1727381448712,-500.0,0.00021999,120]
[339230541,1727381448722,-500.0,0.00021999,120]
[339230542,1727381448731,-453.96498218,0.00021999,120]
[339230543,1727381448741,-500.0,0.00021999,120]
[339230544,1727381448752,-500.0,0.00021999,120]
[339230545,1727381448761,-500.0,0.00021999,120]
[339230546,1727381448771,-425.87307736,0.00021999,120]
[339230547,1727381448780,-500.0,0.00021999,120]
[339230548,1727381448790,-1719.55,0.00021999,7]
[339230549,1727381448799,-502.25984601,0.00021999,120]
[339230550,1727381448808,-1719.55,0.00021999,7]
[339230551,1727381448817,-474.96844635,0.00021999,120]
[339230552,1727381448827,-1719.55,0.00021999,7]
[339230553,1727381448836,-1719.55,0.00021999,7]
[339230554,1727381448846,-500.0,0.00021999,120]
[339230555,1727381448857,-1719.55,0.00021999,7]
[339230556,1727381448866,-1719.55,0.00021999,7]
[339230557,1727381448875,-359.61,0.00021999,120]
[339230558,1727381448885,-1719.55,0.00021999,7]
[339230559,1727381448895,-1668.65398862,0.00021999,7]
[339230560,1727381449260,-30.0758097,0.00021999,7]
[339230561,1727381449289,-153.0,0.00020768,2]
[339230562,1727381449299,-20.82020168,0.00021999,7]
[339230563,1727381449308,-1719.55,0.00021999,7]
[339230564,1727381449317,-1719.55,0.00021999,7]
[339230565,1727381449326,-1719.55,0.00021999,7]
[339230566,1727381449335,-504.18264847,0.00021999,120]
[339230567,1727381449345,-1360.68849146,0.00021999,7]
[339230568,1727381449885,-358.86150854,0.00021999,7]
[339230569,1727381449899,-1719.55,0.00021999,7]
[339230570,1727381449912,-1719.55,0.00021999,7]
[339230571,1727381449924,-1510.54367582,0.00021999,7]
[339230572,1727381449963,-38.20719025,0.00021999,7]
[339230573,1727381450220,-170.79913393,0.00021999,7]
[339230574,1727381450234,-500.0,0.00021999,120]
[339230575,1727381450245,-470.28942508,0.00021999,7]
[339230578,1727381512752,188.61827465,0.00018163,2]
[339230596,1727382546164,-8195.71170863,0.00018063,2]
[339230597,1727382546186,-311.38172535,0.00018163,2]
[339230598,1727382555178,-317.30748382,0.000191,2]
[339230603,1727382606167,73.94450057,0.00018606,2]
[339230639,1727382634402,-115.51826243,0.00018606,2]
[339230641,1727382634413,-290.63,0.000191,2]
[339230642,1727382634424,-300.0,0.00019849,2]
[339230644,1727382634434,-300.0,0.00019849,2]
[339230646,1727382634444,-3522.86057088,0.0001985,2]
[339230749,1727382638197,-9356.60396502,0.0001985,2]
[339230750,1727382638207,-1933.13232196,0.000199,2]
[339230751,1727382638216,-162.40887718,0.0001998,2]
[339230752,1727382638226,-13908.314354,0.0001999,2]
[339230753,1727382638235,-250.0,0.0002,2]
[339230754,1727382638245,-5100.0,0.0002,2]
[339230755,1727382638254,-1264.99999901,0.0002,2]
[339230756,1727382638263,-176.24971131,0.0002,2]
[339230757,1727382638272,-152.68017911,0.00020417,2]
[339230758,1727382638282,-500.0,0.00020609,2]
[339230759,1727382638292,-500.0,0.00020609,2]
[339230760,1727382638301,-500.0,0.00020609,2]
[339230761,1727382638310,-500.0,0.00020609,2]
[339230762,1727382638319,-500.0,0.00020609,2]
[339230763,1727382638328,-500.0,0.00020609,2]
[339230764,1727382638338,-500.0,0.00020609,2]
[339230765,1727382638347,-500.0,0.00020609,2]
[339230766,1727382638357,-500.0,0.00020609,2]
[339230767,1727382638366,-500.0,0.00020609,2]
[339230768,1727382638376,-500.0,0.00020609,2]
[339230769,1727382638386,-500.0,0.00020609,2]
[339230770,1727382638395,-500.0,0.00020609,2]
[339230771,1727382638404,-500.0,0.00020609,2]
[339230772,1727382638414,-500.0,0.00020609,2]
[339230773,1727382638424,-213.05584626,0.00020609,2]
[339230774,1727382638433,-500.0,0.00020609,2]
[339230775,1727382638442,-500.0,0.00020609,2]
[339230776,1727382638452,-500.0,0.00020609,2]
[339230777,1727382638462,-500.0,0.00020609,2]
[339230778,1727382638474,-500.0,0.00020609,2]
[339230779,1727382638484,-500.0,0.00020609,2]
[339230780,1727382638494,-500.0,0.00020609,2]
[339230781,1727382638504,-500.0,0.00020609,2]
[339230782,1727382638514,-500.0,0.00020609,2]
[339230783,1727382638524,-500.0,0.00020609,2]
[339230784,1727382638534,-500.0,0.00020609,2]
[339230785,1727382638545,-500.0,0.00020609,2]
[339230786,1727382638555,-500.0,0.00020609,2]
[339230787,1727382638564,-14644.14925646,0.0002061,2]
[339230788,1727382638574,-153.0,0.00020854,2]
[339230789,1727382638584,-153.0,0.00020854,2]
[339230790,1727382638593,-153.0,0.00020854,2]
[339230791,1727382638603,-153.0,0.00020854,2]
[339230792,1727382638612,-153.0,0.00020854,2]
[339230793,1727382638630,-153.0,0.00020854,2]
[339230794,1727382638640,-153.0,0.00020854,2]
[339230795,1727382638649,-153.0,0.00020854,2]
[339230796,1727382638658,-153.0,0.00020854,2]
[339230797,1727382638667,-153.0,0.00020854,2]
[339230798,1727382638677,-153.0,0.00020854,2]
[339230799,1727382638686,-153.0,0.00020857,2]
[339230800,1727382638695,-153.0,0.00020857,2]
[339230801,1727382638704,-153.0,0.00020857,2]
[339230802,1727382638713,-153.0,0.00020857,2]
[339230803,1727382638722,-153.0,0.00020857,2]
[339230804,1727382638732,-153.0,0.00020857,2]
[339230805,1727382638741,-153.0,0.00020857,2]
[339230806,1727382638752,-153.0,0.00020857,2]
[339230807,1727382638762,-153.0,0.00020857,2]
[339230808,1727382638771,-153.0,0.00020857,2]
[339230809,1727382638782,-153.0,0.00020857,2]
[339230810,1727382638791,-153.0,0.00020859,2]
[339230811,1727382638801,-153.0,0.00020859,2]
[339230812,1727382638810,-153.0,0.00020859,2]
[339230813,1727382638820,-153.0,0.00020859,2]
[339230814,1727382638830,-153.0,0.00020859,2]
[339230815,1727382638840,-153.0,0.00020859,2]
[339230816,1727382638851,-153.0,0.00020859,2]
[339230817,1727382638861,-153.0,0.00020859,2]
[339230818,1727382638875,-153.0,0.00020859,2]
[339230819,1727382638887,-153.0,0.00020859,2]
[339230820,1727382638897,-153.0,0.00020859,2]
[339230821,1727382638906,-153.0,0.00020859,2]
[339230822,1727382638916,-153.0,0.00020861,2]
[339230823,1727382638926,-153.0,0.00020861,2]
[339230824,1727382638937,-153.0,0.00020861,2]
[339230825,1727382638946,-153.0,0.00020861,2]
[339230826,1727382638956,-153.0,0.00020861,2]
[339230827,1727382638966,-153.0,0.00020861,2]
[339230828,1727382638975,-153.0,0.00020861,2]
[339230829,1727382638985,-153.0,0.00020861,2]
[339230830,1727382638994,-153.0,0.00020861,2]
[339230831,1727382639004,-153.0,0.00020861,2]
[339230832,1727382639013,-153.0,0.00020861,2]
[339230833,1727382639022,-153.0,0.00020862,2]
[339230834,1727382639031,-250.0,0.00021,2]
[339230835,1727382639040,-150.0,0.00021,2]
[339230836,1727382639049,-259.77248991,0.00021,2]
[339230837,1727382639059,-10196.72423065,0.00021,2]
[339230838,1727382639069,-234.10467923,0.00021,2]
[339230839,1727382639079,-506.75742959,0.000212,2]
[339230840,1727382639088,-236.1948853,0.00021452,2]
[339230841,1727382639098,-420.0,0.00021617,2]
[339230842,1727382639107,-420.0,0.00021834,2]
[339230843,1727382639124,-515.60731086,0.00021879,2]
[339230844,1727382639137,-11635.61363201,0.00021882,2]
[339230845,1727382639145,-344.1,0.00021889,3]
[339230846,1727382639154,-172.05,0.00021889,3]
[339230847,1727382639163,-516.17,0.00021889,3]
[339230848,1727382639172,-3848.0,0.00021899,2]
[339230849,1727382639181,-189.18544747,0.00021899,7]
[339230850,1727382639190,-1865.78580078,0.00021899,2]
[339230851,1727382639199,-500.0,0.00021899,2]
[339230852,1727382639209,-346.20567942,0.00021899,2]
[339230853,1727382639219,-500.0,0.00021899,2]
[339230855,1727382639228,-536.28234604,0.00021899,2]
[339230857,1727382639238,-500.0,0.00021899,2]
[339230859,1727382639247,-373.94702776,0.00021899,2]
[339230860,1727382639256,-500.0,0.00021899,2]
[339230861,1727382639265,-152.65,0.000219,31]
[339230862,1727382639274,-152.65,0.000219,31]
[339230863,1727382639283,-152.65,0.000219,31]
[339230864,1727382639292,-152.65,0.000219,31]
[339230865,1727382639302,-152.65,0.000219,31]
[339230866,1727382639314,-152.65,0.000219,31]
[339230868,1727382639325,-152.65,0.000219,31]
[339230869,1727382639336,-152.65,0.000219,31]
[339230871,1727382639346,-152.65,0.000219,31]
[339230872,1727382639357,-152.65,0.000219,31]
[339230873,1727382639369,-152.65,0.000219,31]
[339230874,1727382639380,-152.65,0.000219,31]
[339230875,1727382639389,-152.65,0.000219,31]
[339230876,1727382639399,-152.65,0.000219,31]
[339230878,1727382639408,-1000.0,0.000219,2]
[339230880,1727382639419,-19871.34920418,0.000219,2]
[339230882,1727382639429,-150.56145074,0.0002192,7]
[339230884,1727382639439,-150.56145074,0.0002192,7]
[339230885,1727382639448,-150.56145074,0.0002192,7]
[339230886,1727382639458,-150.56145074,0.0002192,7]
[339230887,1727382639471,-150.56145074,0.0002192,7]
[339230888,1727382639480,-150.56145074,0.0002192,7]
[339230889,1727382639489,-150.56145074,0.0002192,7]
[339230890,1727382639498,-151.06,0.0002192,7]
[339230891,1727382639507,-237028.833252,0.00021958,3]
[339230892,1727382639516,-500.0,0.00021978,2]
[339230893,1727382639526,-500.0,0.00021978,2]
[339230894,1727382639536,-500.0,0.00021978,2]
[339230895,1727382639548,-500.0,0.00021978,2]
[339230896,1727382639557,-500.0,0.00021978,2]
[339230897,1727382639567,-504.12171098,0.00021978,2]
[339230898,1727382639576,-38201.71390985,0.00021978,3]
[339230900,1727382640385,-1303.09163215,0.00021978,3]
[339230901,1727382640394,-500.0,0.00021988,2]
[339230902,1727382640404,-1814.79343957,0.00021998,2]
[339230903,1727382640413,-160.0,0.00021998,2]
[339230904,1727382640423,-308.73225216,0.00021998,2]
[339230905,1727382640432,-1831.15005552,0.00021999,2]
[339230906,1727382640441,-894.72742819,0.00021999,2]
[339230907,1727382640451,-647.98201812,0.00021999,120]
[339230908,1727382640460,-510.77839433,0.00021999,120]
[339230909,1727382640475,-502.52561091,0.00021999,120]
[339230910,1727382640485,-500.0,0.00021999,120]
[339230912,1727382640494,-500.0,0.00021999,120]
[339230913,1727382640504,-506.31631683,0.00021999,120]
[339230914,1727382640513,-500.0,0.00021999,120]
[339230915,1727382640523,-396.85,0.00021999,120]
[339230916,1727382640532,-500.0,0.00021999,120]
[339230917,1727382640542,-500.0,0.00021999,120]
[339230918,1727382640551,-504.73746437,0.00021999,120]
[339230919,1727382640560,-151.0,0.00021999,7]
[339230920,1727382640569,-151.0,0.00021999,7]
[339230921,1727382640578,-151.0,0.00021999,7]
[339230922,1727382640586,-203.678664,0.00021999,7]
[339230923,1727382640596,-500.0,0.00021999,120]
[339230924,1727382640605,-501.27515474,0.00021999,120]
[339230925,1727382640614,-500.0,0.00021999,120]
[339230926,1727382640625,-502.25984601,0.00021999,120]
[339230927,1727382640634,-504.16760848,0.00021999,120]
[339230928,1727382640643,-500.0,0.00021999,120]
[339230929,1727382640652,-500.0,0.00021999,120]
[339230930,1727382640661,-503.82395502,0.00021999,120]
[339230931,1727382640670,-317.61739615,0.00021999,120]
[339230932,1727382640679,-500.0,0.00021999,120]
[339230933,1727382640688,-501.90307515,0.00021999,120]
[339230934,1727382640697,-500.0,0.00021999,120]
[339230935,1727382640707,-500.0,0.00021999,120]
[339230936,1727382640716,-500.0,0.00021999,120]
[339230937,1727382640725,-500.0,0.00021999,120]
[339230938,1727382640734,-500.0,0.00021999,120]
[339230939,1727382640743,-633.47533408,0.00021999,120]
[339230940,1727382640753,-501.28478165,0.00021999,120]
[339230941,1727382640763,-267.92,0.00021999,7]
[339230942,1727382640772,-267.92,0.00021999,7]
[339230943,1727382640781,-267.92,0.00021999,7]
[339230944,1727382640790,-267.92,0.00021999,7]
[339230945,1727382640799,-267.92,0.00021999,7]
[339230946,1727382640808,-267.92,0.00021999,7]
[339230947,1727382640817,-267.92,0.00021999,7]
[339230948,1727382640827,-267.92,0.00021999,7]
[339230949,1727382640837,-267.92,0.00021999,7]
[339230950,1727382640846,-267.92,0.00021999,7]
[339230951,1727382640855,-267.92,0.00021999,7]
[339230952,1727382640865,-267.92,0.00021999,7]
[339230953,1727382640874,-267.92,0.00021999,7]
[339230954,1727382640884,-267.92,0.00021999,7]
[339230955,1727382640893,-267.92,0.00021999,7]
[339230956,1727382640902,-267.92,0.00021999,7]
[339230957,1727382640911,-267.92,0.00021999,7]
[339230958,1727382640920,-267.92,0.00021999,7]
[339230959,1727382640930,-267.92,0.00021999,7]
[339230960,1727382640941,-267.92,0.00021999,7]
[339230961,1727382640952,-267.92,0.00021999,7]
[339230962,1727382640962,-267.92,0.00021999,7]
[339230963,1727382640971,-267.92,0.00021999,7]
[339230964,1727382640980,-268.13251587,0.00021999,7]
[339230965,1727382640989,-1000.0,0.00021999,2]
[339230966,1727382640998,-1000.0,0.00021999,2]
[339230967,1727382641007,-1000.0,0.00021999,2]
[339230968,1727382641016,-1000.0,0.00021999,2]
[339230969,1727382641026,-1000.0,0.00021999,2]
[339230970,1727382641035,-1000.0,0.00021999,2]
[339230971,1727382641045,-1000.0,0.00021999,2]
[339230972,1727382641053,-1000.0,0.00021999,2]
[339230973,1727382641063,-1000.0,0.00021999,2]
[339230974,1727382641072,-1000.0,0.00021999,2]
[339230975,1727382641082,-1000.0,0.00021999,2]
[339230976,1727382641091,-1000.0,0.00021999,2]
[339230977,1727382641100,-1000.0,0.00021999,2]
[339230978,1727382641109,-1000.0,0.00021999,2]
[339230979,1727382641119,-1000.0,0.00021999,2]
[339230980,1727382641132,-502.50222107,0.00021999,120]
[339230981,1727382641141,-1000.0,0.00021999,2]
[339230982,1727382641150,-1000.0,0.00021999,2]
[339230983,1727382641159,-1000.0,0.00021999,2]
[339230984,1727382641168,-1000.0,0.00021999,2]
[339230985,1727382641177,-1000.0,0.00021999,2]
[339230986,1727382641186,-1196.3,0.00021999,7]
[339230987,1727382641195,-1196.3,0.00021999,7]
[339230988,1727382641204,-501.82126435,0.00021999,120]
[339230989,1727382641213,-1196.3,0.00021999,7]
[339230990,1727382641222,-1196.3,0.00021999,7]
[339230991,1727382641231,-1196.3,0.00021999,7]
[339230992,1727382641240,-1196.3,0.00021999,7]
[339230993,1727382641249,-1196.3,0.00021999,7]
[339230994,1727382641259,-500.0,0.00021999,120]
[339230995,1727382641268,-1196.3,0.00021999,7]
[339230996,1727382641277,-162.61424482,0.00021999,120]
[339230997,1727382641286,-1196.3,0.00021999,7]
[339230998,1727382641295,-1196.3,0.00021999,7]
[339230999,1727382641304,-1196.3,0.00021999,7]
[339231000,1727382641313,-1196.3,0.00021999,7]
[339231001,1727382641322,-1196.3,0.00021999,7]
[339231002,1727382641331,-1196.3,0.00021999,7]
[339231003,1727382641340,-1196.3,0.00021999,7]
[339231004,1727382641349,-1196.3,0.00021999,7]
[339231005,1727382641358,-1196.3,0.00021999,7]
[339231006,1727382641371,-1196.3,0.00021999,7]
[339231007,1727382641380,-1196.3,0.00021999,7]
[339231008,1727382641390,-1196.3,0.00021999,7]
[339231009,1727382641399,-1196.3,0.00021999,7]
[339231010,1727382641408,-1196.3,0.00021999,7]
[339231011,1727382641418,-1196.3,0.00021999,7]
[339231012,1727382641427,-1196.42293265,0.00021999,7]
[339231013,1727382641436,-501.54400137,0.00021999,120]
[339231014,1727382641445,-500.0,0.00021999,120]
[339231015,1727382641454,-500.0,0.00021999,120]
[339231016,1727382641464,-500.0,0.00021999,120]
[339231017,1727382641477,-500.0,0.00021999,120]
[339231018,1727382641487,-500.0,0.00021999,120]
[339231019,1727382641497,-500.0,0.00021999,120]
[339231020,1727382641506,-500.0,0.00021999,120]
[339231021,1727382641516,-500.0,0.00021999,120]
[339231022,1727382641526,-500.0,0.00021999,120]
[339231023,1727382641535,-500.0,0.00021999,120]
[339231024,1727382641545,-500.0,0.00021999,120]
[339231026,1727382641555,-440.83748152,0.00021999,120]
[339231027,1727382641564,-509.68535942,0.00021999,120]
[339231028,1727382641573,-500.0,0.00021999,120]
[339231029,1727382641582,-500.0,0.00021999,120]
[339231030,1727382641592,-500.0,0.00021999,120]
[339231031,1727382641601,-500.0,0.00021999,120]
[339231032,1727382641610,-517.01180581,0.00021999,120]
[339231033,1727382641623,-500.0,0.00021999,120]
[339231034,1727382641632,-500.0,0.00021999,120]
[339231035,1727382641641,-500.0,0.00021999,120]
[339231036,1727382641651,-500.0,0.00021999,120]
[339231037,1727382641660,-585.13958455,0.00021999,120]
[339231038,1727382641774,-500.0,0.00021999,120]
[339231039,1727382641784,-608.34052896,0.00021999,120]
[339231040,1727382641793,-505.60313353,0.00021999,120]
[339231041,1727382641802,-500.0,0.00021999,120]
[339231042,1727382641811,-500.0,0.00021999,120]
[339231043,1727382641820,-566.95106437,0.00021999,120]
[339231044,1727382641829,-500.0,0.00021999,120]
[339231045,1727382641838,-501.31373715,0.00021999,120]
[339231046,1727382641847,-577.60404716,0.00021999,120]
[339231047,1727382641857,-500.0,0.00021999,120]
[339231048,1727382641867,-500.0,0.00021999,120]
[339231049,1727382641877,-500.0,0.00021999,120]
[339231050,1727382641886,-425.87307736,0.00021999,120]
[339231051,1727382641895,-500.0,0.00021999,10]
[339231052,1727382641905,-500.0,0.00021999,10]
[339231053,1727382641914,-500.0,0.00021999,10]
[339231054,1727382641923,-500.0,0.00021999,120]
[339231055,1727382641931,-554.76196888,0.00021999,10]
[339231056,1727382641941,-437.25711345,0.00021999,120]
[339231057,1727382641950,-500.0,0.00021999,120]
[339231058,1727382641959,-501.43252782,0.00021999,120]